bitfinex-derivatives/quotes_BNBF0:USTF0_20250413
["timestamp","ask_amount","ask_price","bid_price","bid_amount"]
[1744518875126,0.30971638,593.86,593.27,2.731]
[1744518875824,0.30971638,593.86,593.27,3.292]
[1744518876222,0.30971638,593.9,593.27,3.292]
[1744518877326,0.30971638,593.89,593.27,3.292]
[1744518877519,0.30971638,593.9,593.27,3.292]
[1744518877722,0.30971638,593.89,593.27,3.292]
[1744518877920,0.30971638,593.9,593.27,3.292]
[1744518878123,0.2932539,593.91,593.27,3.292]
[1744518878321,0.30968983,593.9,593.27,3.292]
[1744518879225,0.30968983,594.38,593.27,3.292]
[1744518879424,0.64618056,594.37,593.27,3.292]
[1744518879622,0.64618622,594.36,593.27,3.292]
[1744518879822,0.33650206,594.35,593.27,3.292]
[1744518880026,0.30968983,594.34,593.27,3.292]
[1744518880227,0.64620321,594.33,593.27,3.292]
[1744518880427,0.64620887,594.32,593.27,3.292]
[1744518880627,0.30968983,594.31,593.27,3.292]
[1744518880928,0.33653037,594.3,593.28,0.5318384]
[1744518881128,0.30968983,594.29,593.27,3.292]
[1744518881328,0.33654169,594.28,593.28,0.53181676]
[1744518881523,0.30967912,594.27,593.27,1.547]
[1744518881725,0.33655302,594.26,593.27,1.547]
[1744518881926,0.30967912,594.25,593.27,1.547]
[1744518882531,0.33656435,594.24,593.27,1.547]
[1744518882832,0.30967912,594.23,593.27,1.547]
[1744518883031,0.64624913,594.23,593.27,1.547]
[1744518883230,0.60289225,594.22,593.27,1.547]
[1744518883425,0.30967912,594.21,593.27,1.547]
[1744518883729,0.30967912,594.21,593.27,2.299]
[1744518884029,0.30967912,594.21,593.27,2.881]
[1744518884930,0.30967912,594.21,593.27,3.442]
[1744518885129,0.30967912,594.22,593.27,3.442]
[1744518885330,0.30967912,594.21,593.27,3.442]
[1744518885630,0.30967912,594.2,593.27,3.442]
[1744518885823,0.30967912,594.22,593.27,3.442]
[1744518886326,0.29321436,594.21,593.27,3.442]
[1744518886527,0.30967912,594.2,593.27,3.442]
[1744518887230,0.30967912,594.19,593.27,3.442]
[1744518887430,0.30967912,594.2,593.27,3.442]
[1744518887632,0.29321436,594.21,593.27,3.442]
[1744518887832,0.30970138,594.2,593.27,3.442]
[1744518888132,0.33657001,594.23,593.27,3.442]
[1744518888133,0.30970138,594.19,593.27,3.442]
[1744518888334,0.29321683,594.19,593.27,3.442]
[1744518888630,0.30970138,594.18,593.27,3.442]
[1744518891136,0.30970138,594.22,593.27,3.442]
[1744518891337,0.30970138,594.21,593.27,3.442]
[1744518891540,0.30970138,594.22,593.27,3.442]
[1744518891835,0.30970138,594.21,593.27,3.442]
[1744518892036,0.30970138,594.2,593.27,3.442]
[1744518892236,0.60291574,594.2,593.27,3.442]
[1744518892437,0.30970138,594.19,593.27,3.442]
[1744518894232,0.29321807,594.18,593.27,3.442]
[1744518894436,0.30970138,594.17,593.27,3.442]
[1744518895643,0.29321807,594.18,593.27,3.442]
[1744518895940,0.30969767,594.17,593.27,3.442]
[1744518897142,0.30969767,594.22,593.27,3.442]
[1744518897441,0.30969274,594.21,593.27,3.442]
[1744518897641,0.30969274,594.22,593.27,3.442]
[1744518897840,0.30969274,594.21,593.27,3.442]
[1744518898039,0.30969274,594.22,593.27,3.442]
[1744518898237,0.29321436,594.2,593.27,3.442]
[1744518898439,0.30969274,594.19,593.27,3.442]
[1744518900241,0.29321807,594.18,593.27,3.442]
[1744518900441,0.60291081,594.18,593.27,3.442]
[1744518900642,0.30969274,594.17,593.27,3.442]
[1744518901647,0.29321807,594.18,593.27,3.442]
[1744518901850,0.30967638,594.17,593.27,3.442]
[1744518903247,0.29322054,594.16,593.27,3.442]
[1744518903449,0.30967638,594.15,593.27,3.442]
[1744518906154,0.30967638,594.22,593.27,3.442]
[1744518906453,0.33657001,594.23,593.27,3.442]
[1744518906654,0.30968236,594.22,593.27,3.442]
[1744518907256,0.29321436,594.21,593.27,3.442]
[1744518907456,0.30968236,594.2,593.27,3.442]
[1744518908357,0.30968236,594.2,593.28,0.53184045]
[1744518908553,0.30968236,594.2,593.27,3.442]
[1744518908753,0.30968236,594.2,593.28,0.53188642]
[1744518908954,0.30968236,594.2,593.27,0.523]
[1744518909358,0.30968236,594.2,593.28,0.53188869]
[1744518909550,0.30968236,594.2,593.27,0.523]
[1744518910256,0.30968236,594.2,593.28,0.53200346]
[1744518910456,0.30968236,594.2,593.27,0.523]
[1744518911154,0.30968236,594.2,593.27,1.037]
[1744518911357,0.29321436,594.21,593.27,1.583]
[1744518911558,0.3096852,594.2,593.28,0.53207957]
[1744518911763,0.3096852,594.2,593.27,1.583]
[1744518911960,0.3096852,594.2,593.28,0.53207578]
[1744518912155,0.3096852,594.22,593.27,1.583]
[1744518912464,0.29321683,594.19,593.28,0.53215458]
[1744518912662,0.3096852,594.18,593.27,3.301]
[1744518912863,0.3096852,594.18,593.28,0.53215415]
[1744518913061,0.30968418,594.17,593.27,3.301]
[1744518913361,0.30968418,594.16,593.28,0.53215415]
[1744518913561,0.30968418,594.18,593.27,3.301]
[1744518913763,0.30968418,594.18,593.28,0.53225016]
[1744518913959,0.30968418,594.18,593.27,3.301]
[1744518914161,0.30968418,594.18,593.28,0.53225338]
[1744518914462,0.30968418,594.18,593.29,0.53235133]
[1744518914662,0.30968418,594.18,593.27,3.301]
[1744518914863,0.30968418,594.18,593.28,0.53234608]
[1744518915062,0.30968418,594.18,593.29,0.53234608]
[1744518915262,0.30968418,594.22,593.27,3.301]
[1744518915458,0.33658134,594.21,593.27,3.301]
[1744518915660,0.30968418,594.2,593.27,3.301]
[1744518915864,0.33659267,594.19,593.27,3.301]
[1744518916163,0.30968418,594.18,593.27,3.301]
[1744518916465,0.336604,594.17,593.27,3.301]
[1744518916662,0.30968418,594.16,593.27,3.301]
[1744518916859,0.33661533,594.15,593.27,3.301]
[1744518917064,0.30968418,594.14,593.27,3.301]
[1744518917262,0.33662666,594.13,593.27,3.301]
[1744518917465,0.30968418,594.12,593.27,3.301]
[1744518917664,0.33663799,594.11,593.27,3.301]
[1744518917864,0.30968418,594.1,593.27,3.301]
[1744518919266,0.29325884,594.09,593.27,3.301]
[1744518919467,0.30973785,594.08,593.27,3.301]
[1744518921169,0.30973546,594.07,593.27,3.301]
[1744518921467,0.30973546,594.06,593.27,3.301]
[1744518921668,0.30973546,594.1,593.27,3.301]
[1744518922268,0.29325884,594.09,593.27,3.301]
[1744518922469,0.30973546,594.08,593.27,3.301]
[1744518924167,0.30973546,594.1,593.27,3.301]
[1744518925373,0.29325884,594.09,593.27,3.301]
[1744518925571,0.30973546,594.08,593.27,3.301]
[1744518925872,0.29325884,594.09,593.27,3.301]
[1744518926171,0.3097418,594.08,593.27,3.301]
[1744518927171,0.3097418,594.1,593.27,3.301]
[1744518927367,0.3097418,594.09,593.27,3.301]
[1744518927671,0.3097418,594.08,593.27,3.301]
[1744518927865,0.3097418,594.1,593.27,3.301]
[1744518928273,0.29325884,594.07,593.27,3.301]
[1744518928571,0.3097418,594.06,593.27,3.301]
[1744518929071,0.29325884,594.07,593.27,3.301]
[1744518929271,0.30974114,594.06,593.27,3.301]
[1744518930378,0.60300492,594.05,593.27,3.301]
[1744518930667,0.30974114,594.04,593.27,3.301]
[1744518930873,0.30973899,594.03,593.27,3.301]
[1744518931167,0.30973899,594.02,593.27,3.301]
[1744518931372,0.30973899,594.04,593.27,3.301]
[1744518931572,0.30973899,594.03,593.27,3.301]
[1744518931773,0.30973899,594.04,593.27,3.301]
[1744518931968,0.30973899,594.03,593.27,3.301]
[1744518932173,0.30973899,594.04,593.27,3.301]
[1744518932373,0.30973899,594.03,593.27,3.301]
[1744518932575,0.30973899,594.04,593.27,3.301]
[1744518932872,0.30973899,594.03,593.27,3.301]
[1744518933073,0.30973899,594.04,593.27,3.301]
[1744518933273,0.30973899,594.03,593.27,3.301]
[1744518933576,0.30973899,594.02,593.27,3.301]
[1744518933776,0.30973899,594.04,593.27,3.301]
[1744518935575,0.29326378,594.05,593.27,3.301]
[1744518935768,0.30974425,594.04,593.27,3.301]
[1744518936272,0.29326625,594.03,593.27,3.301]
[1744518936669,0.30974425,594.02,593.27,3.301]
[1744518938879,0.29326625,594.03,593.27,3.301]
[1744518939080,0.30974026,594.01,593.27,3.301]
[1744518939378,0.30974026,594.0,593.27,3.301]
[1744518939577,0.30974026,594.02,593.27,3.301]
[1744518939776,0.30974026,594.01,593.27,3.301]
[1744518939972,0.30974026,594.02,593.27,3.301]
[1744518940173,0.30974026,594.01,593.27,3.301]
[1744518940377,0.30974026,594.02,593.27,3.301]
[1744518940582,0.30973663,594.01,593.27,3.301]
[1744518940783,0.30973663,594.0,593.27,3.301]
[1744518940979,0.30973663,594.02,593.27,3.301]
[1744518941176,0.30973663,594.01,593.27,3.301]
[1744518941375,0.30973663,594.0,593.27,3.301]
[1744518941578,0.30973663,594.02,593.27,3.301]
[1744518941779,0.30973663,594.01,593.27,3.301]
[1744518942076,0.33663799,594.11,593.28,0.53315031]
[1744518942281,0.30969112,594.1,593.29,0.53315031]
[1744518942477,0.30969112,594.1,593.3,0.53315031]
[1744518942677,0.30969112,594.1,593.31,0.53315031]
[1744518942877,0.30969112,594.1,593.32,0.53315031]
[1744518943081,0.30969112,594.1,593.33,0.53315031]
[1744518943283,0.29334041,594.09,592.45,1.06013757]
[1744518943584,0.30969112,594.08,592.82,0.29333794]
[1744518943782,0.30969112,594.08,592.83,1.1712727]
[1744518943981,0.30969112,594.08,592.84,0.53310463]
[1744518944179,0.30969112,594.08,592.85,0.30080323]
[1744518944379,0.30969112,594.08,592.86,0.5330739]
[1744518944584,0.30969112,594.08,592.87,0.83387713]
[1744518944782,0.30969112,594.08,592.88,0.83387713]
[1744518944978,0.30969112,594.08,592.89,0.83387713]
[1744518945181,0.30969112,594.1,592.9,0.83387713]
[1744518945387,0.33663799,594.11,592.91,0.87039322]
[1744518945579,0.30966845,594.1,592.92,0.83386209]
[1744518945784,0.30966845,594.1,592.93,0.83386209]
[1744518945981,0.30966845,594.1,592.94,0.83386209]
[1744518946183,0.2932749,594.09,592.95,0.83386209]
[1744518946379,0.30966845,594.08,592.96,0.83386209]
[1744518946581,0.30966845,594.08,592.97,0.83386209]
[1744518946785,0.30966845,594.08,592.98,0.83386209]
[1744518946988,0.30966845,594.08,592.99,0.5330739]
[1744518947188,0.2932749,594.09,593.0,0.5330739]
[1744518947383,0.2932749,594.09,593.01,0.5330739]
[1744518947691,0.2932749,594.09,593.02,0.5330739]
[1744518947989,0.33663799,594.11,593.03,0.5330739]
[1744518948181,0.33663799,594.11,593.04,0.5330739]
[1744518948385,0.33663799,594.11,593.05,0.5330739]
[1744518948591,0.33663799,594.11,592.93,0.503]
[1744518948592,0.33663799,594.11,593.06,0.5330739]
[1744518948783,0.33663799,594.11,593.07,0.5330739]
[1744518949081,0.33663799,594.11,593.08,0.5330739]
[1744518949285,0.29319213,594.1,593.09,0.5330739]
[1744518949485,0.29319213,594.1,593.1,0.5330739]
[1744518949688,0.29319213,594.1,593.11,0.5330739]
[1744518949993,0.29319213,594.1,593.12,0.5330739]
[1744518950187,0.29319213,594.1,593.13,0.5330739]
[1744518950387,0.29319213,594.1,593.14,0.5330739]
[1744518950588,0.29319213,594.1,593.15,0.5330739]
[1744518950790,0.29319213,594.1,593.16,0.5330739]
[1744518950992,0.29319213,594.1,592.93,0.503]
[1744518950993,0.33663799,594.11,593.17,0.5330739]
[1744518951290,0.33663799,594.11,593.18,0.53243612]
[1744518951485,0.33663799,594.11,593.19,0.53243612]
[1744518951687,0.30961993,594.1,593.2,0.53243612]
[1744518951888,0.33663799,594.11,593.21,0.53243612]
[1744518952088,0.33663799,594.11,593.22,0.53243612]
[1744518952294,0.29313286,594.1,593.23,0.53243612]
[1744518952491,0.29313286,594.1,593.24,0.53243612]
[1744518952686,0.29313286,594.1,593.25,0.53243612]
[1744518952894,0.29313286,594.1,593.26,0.53243612]
[1744518953092,0.29313286,594.1,593.27,0.53243612]
[1744518953290,0.29313286,594.1,593.28,0.53243612]
[1744518953490,0.29313286,594.1,593.29,0.53243612]
[1744518953692,0.29313286,594.1,593.3,0.53243612]
[1744518953892,0.29313286,594.1,592.93,0.503]
[1744518953893,0.29313286,594.1,593.31,0.53243612]
[1744518954092,0.33663799,594.11,593.32,0.53243612]
[1744518954390,0.33663799,594.11,593.33,0.53243612]
[1744518954587,0.33663799,594.11,593.34,0.53243612]
[1744518954792,0.30958667,594.1,593.35,0.53243612]
[1744518955001,0.30958667,594.1,593.36,0.53243612]
[1744518955194,0.29322919,594.09,593.37,0.53243612]
[1744518955395,0.29322919,594.09,593.38,0.53243612]
[1744518955591,0.29322919,594.09,593.39,0.53243612]
[1744518955791,0.29322919,594.09,593.4,0.53243612]
[1744518955992,0.29322919,594.09,593.41,0.53243612]
[1744518956194,0.29322919,594.09,593.42,0.53243612]
[1744518956394,0.29322919,594.09,593.43,0.53243612]
[1744518956590,0.29322919,594.09,593.44,0.53243612]
[1744518956793,0.29322919,594.09,593.45,0.53243612]
[1744518956998,0.29322919,594.09,593.46,0.53243612]
[1744518957191,0.33663799,594.11,593.47,0.53243612]
[1744518957394,1.28024234,594.84,592.93,0.503]
[1744518957590,0.30957086,594.83,592.94,0.83217457]
[1744518957794,0.30957086,594.82,592.95,0.83217457]
[1744518957994,0.30957086,594.81,592.96,0.83217457]
[1744518958193,0.30957086,594.81,592.93,0.503]
[1744518958194,0.33625313,594.79,592.97,0.83217457]
[1744518958396,0.3095705,594.78,592.98,0.83217423]
[1744518958597,0.3095705,594.77,593.0,0.33726812]
[1744518958794,0.33627574,594.75,593.01,0.83217423]
[1744518958994,0.3095705,594.74,593.02,1.16943098]
[1744518959194,0.3095705,594.73,593.03,0.83217423]
[1744518959502,0.33627574,594.75,593.04,1.1694196]
[1744518959503,0.3095705,594.72,593.04,1.1694196]
[1744518959698,0.3095705,594.71,593.05,0.83217423]
[1744518959995,0.3095705,594.7,593.06,0.83217423]
[1744518960199,0.3095705,594.69,593.07,0.83217423]
[1744518960397,0.3095705,594.68,593.08,0.83217423]
[1744518960603,0.33632664,594.66,593.09,1.16939117]
[1744518960797,0.3095705,594.65,593.1,0.83217423]
[1744518960998,0.3095705,594.65,593.11,1.1693798]
[1744518961201,0.3363436,594.63,593.12,0.86868344]
[1744518961395,0.3095705,594.62,593.13,0.86867775]
[1744518961592,0.3095705,594.62,593.14,0.53148355]
[1744518961793,0.3095705,594.62,593.15,0.86866638]
[1744518961998,0.33635492,594.61,593.16,0.8686607]
[1744518962199,0.3095705,594.6,593.17,0.53148355]
[1744518962496,0.3095705,594.6,593.18,0.53148355]
[1744518962694,0.3095705,594.6,593.19,0.53148355]
[1744518962900,0.3095705,594.6,593.2,0.53112729]
[1744518963100,0.3095705,594.6,593.21,0.53112729]
[1744518963300,0.3095705,594.6,593.22,0.53112729]
[1744518963505,0.33636623,594.59,593.23,0.53112729]
[1744518963699,0.3095705,594.58,593.24,0.53112729]
[1744518963900,0.33637755,594.57,593.25,0.53112729]
[1744518964097,0.3095705,594.56,593.26,0.53112729]
[1744518964398,0.6459708,594.55,593.27,0.53112729]
[1744518964602,0.64597646,594.54,593.28,0.53112729]
[1744518964803,0.30958194,594.53,593.29,0.53112729]
[1744518965000,0.30958194,594.53,593.3,0.53112729]
[1744518965196,0.30958194,594.53,593.31,0.53112729]
[1744518965402,0.30958194,594.53,593.32,0.53112729]
[1744518965603,0.30958194,594.53,593.33,0.53112729]
[1744518965905,0.33640584,594.52,593.34,0.53112729]
[1744518966106,0.30958435,594.51,593.35,0.53112729]
[1744518966308,0.33641715,594.5,593.36,0.53112729]
[1744518966502,0.30958435,594.49,593.37,0.53112729]
[1744518966704,0.33642847,594.48,593.38,0.53112729]
[1744518966903,0.30958435,594.47,593.39,0.53112729]
[1744518967107,0.33643979,594.46,593.4,0.53112729]
[1744518967402,0.30958435,594.45,593.41,0.53112729]
[1744518967609,0.33645111,594.44,593.42,0.53112729]
[1744518967811,0.30958435,594.43,593.27,0.789]
[1744518968107,0.30958435,594.43,593.28,0.53077646]
[1744518968312,0.30958435,594.43,593.29,0.53077646]
[1744518968508,0.30958435,594.43,593.3,0.53077646]
[1744518968710,0.30958435,594.43,593.31,0.53077646]
[1744518968911,0.30958435,594.43,593.32,0.53077646]
[1744518969111,0.33645111,594.44,593.33,0.53077646]
[1744518969413,0.3095765,594.43,593.34,0.53077646]
[1744518969611,0.3095765,594.43,593.35,0.53077646]
[1744518969805,0.3095765,594.43,593.36,0.53077646]
[1744518970008,0.3095765,594.43,593.37,0.53077646]
[1744518970209,0.64603327,594.43,593.38,0.53077646]
[1744518970408,0.60271553,594.42,593.39,0.53077646]
[1744518970609,0.3095765,594.41,593.38,0.529]
[1744518970909,0.30959026,594.4,593.39,0.53061625]
[1744518971111,0.30959026,594.41,593.38,0.529]
[1744518972211,0.30959026,594.42,593.38,0.529]
[1744518972811,0.30959026,594.41,593.38,0.529]
[1744518973011,0.30959026,594.4,593.38,0.529]
[1744518973213,0.29314027,594.4,593.38,0.529]
[1744518973411,0.30959026,594.39,593.38,0.529]
[1744518973909,0.29314027,594.4,593.38,0.529]
[1744518974105,0.30959281,594.39,593.38,0.529]
[1744518975207,0.30959281,594.42,593.38,0.529]
[1744518975412,0.29314397,594.38,593.39,0.588]
[1744518975608,0.30959281,594.37,593.39,0.588]
[1744518978216,0.30959281,594.42,593.39,0.588]
[1744518978407,0.29314397,594.36,593.39,0.588]
[1744518978611,0.30959281,594.35,593.39,0.588]
[1744518979007,0.30959281,594.35,593.4,0.458]
[1744518980313,0.30959281,594.34,593.4,0.458]
[1744518980512,0.33651338,594.33,593.4,0.458]
[1744518980716,0.3096792,594.32,593.4,0.458]
[1744518981020,0.3365247,594.31,593.4,0.458]
[1744518981215,0.3096792,594.3,593.4,0.458]
[1744518981515,0.33653603,594.29,593.4,0.458]
[1744518981712,0.3096792,594.28,593.4,0.458]
[1744518981918,0.33654736,594.27,593.4,0.458]
[1744518982117,0.3096792,594.26,593.4,0.458]
[1744518982315,0.64623222,594.26,593.4,0.458]
[1744518982514,0.3096792,594.25,593.4,0.458]
[1744518984314,0.3096792,594.25,593.4,1.067]
[1744518985219,0.29318719,594.24,593.4,1.067]
[1744518985615,0.3096792,594.23,593.4,1.067]
[1744518987221,0.3096792,594.25,593.4,1.067]
[1744518987421,0.29318966,594.22,593.4,1.067]
[1744518987617,0.3096792,594.21,593.4,1.067]
[1744518990224,0.3096792,594.25,593.4,1.067]
[1744518990519,0.29318719,594.2,593.4,1.067]
[1744518990723,0.30968104,594.19,593.4,1.067]
[1744518991518,0.30968104,594.25,593.4,1.067]
[1744518991723,0.30968104,594.25,593.4,1.733]
[1744518992127,0.33655302,594.26,593.4,1.733]
[1744518992321,0.30968374,594.25,593.4,1.733]
[1744518992622,0.30968374,594.24,593.4,1.733]
[1744518992825,0.30968374,594.23,593.4,1.733]
[1744518993019,0.30968374,594.22,593.4,1.733]
[1744518993222,0.30968374,594.25,593.4,1.733]
[1744518993419,0.30968374,594.24,593.4,1.733]
[1744518993618,0.30968374,594.23,593.4,1.733]
[1744518993820,0.30968137,594.22,593.4,1.733]
[1744518994025,0.30968137,594.25,593.4,1.733]
[1744518994323,0.30968137,594.24,593.4,1.733]
[1744518994624,0.30968137,594.23,593.4,1.733]
[1744518994822,0.30968137,594.25,593.4,1.733]
[1744518995021,0.30968137,594.24,593.4,1.733]
[1744518995219,0.30968137,594.23,593.4,1.733]
[1744518995424,0.30968137,594.25,593.4,1.733]
[1744518995621,0.30968137,594.24,593.4,1.733]
[1744518995826,0.30968137,594.23,593.4,1.733]
[1744518996027,0.29318719,594.23,593.4,1.733]
[1744518996322,0.30968137,594.22,593.4,1.733]
[1744518996526,0.30968137,594.22,593.4,2.4]
[1744518997226,0.3096822,594.21,593.4,2.4]
[1744518997421,0.3096822,594.22,593.4,2.864]
[1744518997625,0.3096822,594.21,593.4,2.864]
[1744518997821,0.3096822,594.22,593.4,2.864]
[1744518998026,0.3096822,594.21,593.4,2.864]
[1744518998224,0.3096822,594.22,593.4,2.864]
[1744518998421,0.29318719,594.23,593.4,2.864]
[1744518998422,0.3096822,594.21,593.4,2.864]
[1744518998626,0.3096822,594.22,593.4,3.585]
[1744518998823,0.30966456,594.21,593.4,3.585]
[1744518999024,0.30966456,594.22,593.4,3.585]
[1744519000429,0.29318719,594.23,593.4,3.585]
[1744519000628,0.30964946,594.22,593.4,3.585]
[1744519002031,0.33655302,594.26,593.4,3.585]
[1744519002231,0.30966095,594.25,593.4,3.585]
[1744519003328,0.29317978,594.24,593.4,3.585]
[1744519003534,0.30966095,594.23,593.4,3.585]
[1744519003733,0.29317978,594.24,593.4,3.585]
[1744519003935,0.30967223,594.23,593.4,3.585]
[1744519005336,0.30967223,594.25,593.4,3.585]
[1744519005536,0.30967223,594.24,593.4,3.585]
[1744519005838,0.30967223,594.23,593.4,3.585]
[1744519006135,0.30967223,594.22,593.4,3.585]
[1744519006336,0.29317978,594.22,593.4,3.585]
[1744519006537,0.30967223,594.21,593.4,3.585]
[1744519008241,0.30967223,594.25,593.4,3.585]
[1744519008742,0.33655302,594.26,593.4,3.585]
[1744519008938,0.30967484,594.25,593.4,3.585]
[1744519009342,0.29317978,594.24,593.4,3.585]
[1744519009538,0.30967484,594.23,593.4,3.585]
[1744519011241,0.30967484,594.25,593.4,3.585]
[1744519012244,0.29317978,594.24,593.4,3.585]
[1744519012445,0.30967484,594.23,593.4,3.585]
[1744519013747,0.29317978,594.24,593.4,3.585]
[1744519013940,0.30966409,594.23,593.4,3.585]
[1744519014546,0.30966409,594.22,593.4,3.585]
[1744519014743,0.30966409,594.25,593.4,3.585]
[1744519015246,0.29317978,594.24,593.4,3.585]
[1744519015445,0.30966409,594.23,593.4,3.585]
[1744519017052,0.29317978,594.24,593.4,3.585]
[1744519017249,0.33655302,594.26,593.4,3.585]
[1744519017250,0.30966893,594.23,593.4,3.585]
[1744519017444,0.30966893,594.25,593.4,3.585]
[1744519017646,0.30966893,594.24,593.4,3.585]
[1744519017847,0.30966893,594.25,593.4,3.585]
[1744519018350,0.29317978,594.24,593.4,3.585]
[1744519018550,0.30966893,594.23,593.4,3.585]
[1744519023253,0.33657567,594.22,593.4,3.585]
[1744519023453,0.30971807,594.21,593.4,3.585]
[1744519023659,0.64630507,594.2,593.4,3.585]
[1744519023860,0.30971807,594.19,593.4,3.585]
[1744519024059,0.30971807,594.18,593.4,3.585]
[1744519024262,0.30971807,594.17,593.4,3.585]
[1744519024465,0.30971807,594.18,593.4,3.585]
[1744519024662,0.30971807,594.17,593.4,3.585]
[1744519024864,0.30971807,594.18,593.4,3.585]
[1744519025066,0.30971807,594.17,593.4,3.585]
[1744519025264,0.30971807,594.18,593.4,3.585]
[1744519026266,1.28024234,594.14,593.4,3.585]
[1744519026466,0.30971807,594.13,593.4,3.585]
[1744519027266,0.29321683,594.12,593.4,3.585]
[1744519027467,0.30971807,594.11,593.4,3.585]
[1744519029274,0.30971807,594.13,593.4,3.585]
[1744519029471,0.2932193,594.1,593.4,3.585]
[1744519029769,0.30971807,594.09,593.4,3.585]
[1744519031673,0.2932193,594.1,593.4,3.585]
[1744519031867,0.30969814,594.09,593.4,3.585]
[1744519032268,0.30969814,594.19,593.4,3.585]
[1744519033366,0.29319336,594.18,593.4,3.585]
[1744519033571,0.30969814,594.17,593.4,3.585]
[1744519034172,0.30969814,594.17,593.41,0.53312283]
[1744519034373,0.30969814,594.17,593.4,3.585]
[1744519034672,0.30969814,594.17,593.41,0.5331155]
[1744519034872,0.30969814,594.17,593.42,0.5331155]
[1744519035074,0.336587,594.2,593.43,0.5331155]
[1744519035272,0.30962061,594.19,593.44,0.5331155]
[1744519035572,0.30962061,594.19,593.45,0.5331155]
[1744519035766,0.30962061,594.19,593.46,0.5331155]
[1744519035966,0.30962061,594.19,593.47,0.5331155]
[1744519036170,0.30962061,594.19,592.61,1.06013757]
[1744519036371,0.29320201,594.18,593.17,0.53316399]
[1744519036668,0.30962061,594.17,593.18,0.53316399]
[1744519036867,0.30962061,594.17,593.19,0.53316399]
[1744519037070,0.30962061,594.17,593.2,0.53316399]
[1744519037268,0.30962061,594.17,593.21,0.53316399]
[1744519037473,0.30962061,594.17,593.22,0.53316399]
[1744519037673,0.30962061,594.17,593.23,0.53316399]
[1744519037974,0.30962061,594.17,593.24,0.53316399]
[1744519038172,0.30962061,594.17,593.25,0.53316399]
[1744519038372,0.30962061,594.19,593.26,0.53316399]
[1744519038669,0.30962061,594.18,593.27,0.53316399]
[1744519038871,0.30962061,594.19,593.28,0.53316399]
[1744519039175,0.30962061,594.19,593.29,0.53316399]
[1744519039376,0.29318101,594.18,593.3,0.53316399]
[1744519039570,0.30962061,594.17,593.31,0.53316399]
[1744519039773,0.30962061,594.17,593.32,0.53316399]
[1744519040076,0.30962061,594.17,593.33,0.53316399]
[1744519040270,0.30962061,594.17,593.34,0.53316399]
[1744519040473,0.30962061,594.17,593.35,0.53316399]
[1744519040773,0.30962061,594.17,593.36,0.53316399]
[1744519040972,0.30962061,594.17,593.37,0.53316399]
[1744519041274,0.336587,594.2,593.38,0.53316399]
[1744519041475,1.28024234,594.48,593.39,0.53316399]
[1744519041671,0.30954447,594.47,593.4,0.53316399]
[1744519041874,1.28024234,594.48,593.41,0.53316399]
[1744519042075,0.30954482,594.47,593.42,0.53316399]
[1744519042271,0.29311928,594.47,593.43,0.53316399]
[1744519042471,0.30954482,594.46,593.44,0.53316399]
[1744519042769,0.30954482,594.46,593.45,0.53316399]
[1744519042973,0.30954482,594.46,593.46,0.53316399]
[1744519043175,0.30954482,594.46,593.47,0.53316399]
[1744519043374,0.30954482,594.46,593.48,0.53316399]
[1744519043571,0.30954482,594.46,593.49,0.53316399]
[1744519043875,0.30954482,594.46,593.5,0.53316399]
[1744519044077,0.30954482,594.46,593.51,0.53316399]
[1744519044277,0.30954482,594.59,593.52,0.53316399]
[1744519044479,0.33637189,594.58,593.53,0.53316399]
[1744519044679,0.33637189,594.58,593.23,2.221]
[1744519044680,0.30954482,594.57,593.54,0.53316399]
[1744519044877,0.3363832,594.56,593.55,0.53316399]
[1744519045073,0.3363832,594.56,593.56,0.53316399]
[1744519045074,0.30954482,594.55,593.56,0.53316399]
[1744519045278,0.33639452,594.54,593.24,0.33713168]
[1744519045477,0.30953476,594.53,593.25,0.83239261]
[1744519045678,0.33640584,594.52,593.26,0.83239261]
[1744519045878,0.30953476,594.51,593.27,0.53173751]
[1744519046079,0.64594625,594.51,593.28,0.53173751]
[1744519046277,0.30953476,594.5,593.29,0.53173751]
[1744519046474,0.30953476,594.5,593.3,0.53173751]
[1744519046677,0.30953476,594.5,593.31,0.53173751]